[Event "Titled Tuesday Blitz December 27 Early 2022"]
[White "Peatman, Carter"]
[Black "Ambartsumova, Karina"]
[WhiteFideId "2096480"]
[BlackFideId "4166299"]
[WhiteElo "1998"]
[BlackElo "2393"]
[Result "0-1"]
[Round "07"]
[TimeControl "180+2"]
[Date "2022.12.27"]
[WhiteClock "0:00:01"]
[BlackClock "0:00:13"]

1. d4 {[%clk 0:03:00]}  Nf6 {[%clk 0:02:59]} 2. Bf4 {[%clk 0:03:01]}  d5 {[%clk 0:02:57]} 3. e3 {[%clk 0:03:01]}  c5 {[%clk 0:02:57]} 4. c3 {[%clk 0:03:01]}  Qb6 {[%clk 0:02:57]} 5. Qb3 {[%clk 0:02:52]}  c4 {[%clk 0:02:56]} 6. Qc2 {[%clk 0:02:46]}  g6 {[%clk 0:02:56]} 7. Nd2 {[%clk 0:02:40]}  Bf5 {[%clk 0:02:55]} 8. Qc1 {[%clk 0:02:25]}  Nc6 {[%clk 0:02:55]} 9. f3 {[%clk 0:02:22]}  Bg7 {[%clk 0:02:55]} 10. e4 {[%clk 0:02:22]}  dxe4 {[%clk 0:02:53]} 11. Nxc4 {[%clk 0:02:22]}  Qd8 {[%clk 0:02:53]} 12. Ne3 {[%clk 0:02:08]}  Be6 {[%clk 0:02:41]} 13. Qc2 {[%clk 0:02:02]}  exf3 {[%clk 0:02:40]} 14. Nxf3 {[%clk 0:02:01]}  O-O {[%clk 0:02:40]} 15. Bd3 {[%clk 0:01:54]}  Rc8 {[%clk 0:02:39]} 16. Qe2 {[%clk 0:01:55]}  a6 {[%clk 0:02:27]} 17. a4 {[%clk 0:01:52]}  Na5 {[%clk 0:02:25]} 18. O-O {[%clk 0:01:46]}  Nd5 {[%clk 0:02:23]} 19. Nxd5 {[%clk 0:01:45]}  Bxd5 {[%clk 0:02:24]} 20. Be5 {[%clk 0:01:37]}  f6 {[%clk 0:02:16]} 21. Bf4 {[%clk 0:01:34]}  Re8 {[%clk 0:02:16]} 22. Rae1 {[%clk 0:01:11]}  Qd7 {[%clk 0:02:16]} 23. b4 {[%clk 0:01:05]}  Nc4 {[%clk 0:02:15]} 24. a5 {[%clk 0:00:55]}  Nd6 {[%clk 0:01:59]} 25. Bd2 {[%clk 0:00:53]}  Bc4 {[%clk 0:01:54]} 26. h4 {[%clk 0:00:43]}  Bxd3 {[%clk 0:01:50]} 27. Qxd3 {[%clk 0:00:44]}  Qb5 {[%clk 0:01:41]} 28. Qe3 {[%clk 0:00:35]}  Qc4 {[%clk 0:01:38]} 29. Qe6+ {[%clk 0:00:32]}  Qxe6 {[%clk 0:01:38]} 30. Rxe6 {[%clk 0:00:33]}  Kf7 {[%clk 0:01:37]} 31. Rfe1 {[%clk 0:00:33]}  Nb5 {[%clk 0:01:35]} 32. Rb6 {[%clk 0:00:25]}  Rc7 {[%clk 0:01:35]} 33. c4 {[%clk 0:00:24]}  Rxc4 {[%clk 0:01:13]} 34. Rxb7 {[%clk 0:00:23]}  Nxd4 {[%clk 0:01:13]} 35. Be3 {[%clk 0:00:20]}  Nxf3+ {[%clk 0:00:57]} 36. gxf3 {[%clk 0:00:21]}  f5 {[%clk 0:00:54]} 37. Bc5 {[%clk 0:00:21]}  Bf6 {[%clk 0:00:55]} 38. Rb6 {[%clk 0:00:16]}  Ra8 {[%clk 0:00:53]} 39. Rd1 {[%clk 0:00:15]}  Rxh4 {[%clk 0:00:46]} 40. Rd7 {[%clk 0:00:13]}  Rc4 {[%clk 0:00:32]} 41. Rc7 {[%clk 0:00:12]}  Bd4+ {[%clk 0:00:27]} 42. Kg2 {[%clk 0:00:08]}  h5 {[%clk 0:00:24]} 43. Rxe7+ {[%clk 0:00:07]}  Kg8 {[%clk 0:00:13]} 44. Rxg6+ {[%clk 0:00:06]}  Kh8 {[%clk 0:00:12]} 45. Rh6+ {[%clk 0:00:06]}  Kg8 {[%clk 0:00:13]} 46. Rg6+ {[%clk 0:00:06]}  Kh8 {[%clk 0:00:13]} 47. Rc7 {[%clk 0:00:05]}  Bxc5 {[%clk 0:00:13]} 48. bxc5 {[%clk 0:00:05]}  Rg8 {[%clk 0:00:13]} 49. Rxg8+ {[%clk 0:00:04]}  Kxg8 {[%clk 0:00:14]} 50. c6 {[%clk 0:00:05]}  Rc5 {[%clk 0:00:14]} 51. Rc8+ {[%clk 0:00:04]}  Kg7 {[%clk 0:00:13]} 52. c7 {[%clk 0:00:04]}  f4 {[%clk 0:00:13]} 53. Ra8 {[%clk 0:00:02]}  Rxc7 {[%clk 0:00:13]} 54. Rxa6 {[%clk 0:00:03]}  Rc5 {[%clk 0:00:12]} 55. Ra7+ {[%clk 0:00:03]}  Kg6 {[%clk 0:00:13]} 56. a6 {[%clk 0:00:04]}  Ra5 {[%clk 0:00:13]} 57. Ra8 {[%clk 0:00:04]}  Kg5 {[%clk 0:00:13]} 58. Rg8+ {[%clk 0:00:01]}  Kh4 {[%clk 0:00:13]} 0-1


[Site "https://www.chess.com"]

[Event "Titled Tuesday Blitz December 27 Early 2022"]
[White "Petrovic, Aleksa"]
[Black "Herman, Daniel"]
[WhiteFideId "967629"]
[BlackFideId "30935008"]
[WhiteElo "2332"]
[BlackElo "1956"]
[Result "1/2-1/2"]
[Round "07"]
[TimeControl "180+2"]
[Date "2022.12.27"]
[WhiteClock "0:02:07"]
[BlackClock "0:01:27"]

1. d4 {[%clk 0:02:56]}  Nf6 {[%clk 0:03:00]} 2. c4 {[%clk 0:02:56]}  g6 {[%clk 0:03:00]} 3. Nc3 {[%clk 0:02:54]}  d5 {[%clk 0:03:00]} 4. cxd5 {[%clk 0:02:53]}  Nxd5 {[%clk 0:03:01]} 5. e4 {[%clk 0:02:53]}  Nxc3 {[%clk 0:03:01]} 6. bxc3 {[%clk 0:02:54]}  Bg7 {[%clk 0:03:01]} 7. Nf3 {[%clk 0:02:54]}  c5 {[%clk 0:03:02]} 8. Rb1 {[%clk 0:02:54]}  Qa5 {[%clk 0:02:43]} 9. Rb5 {[%clk 0:02:43]}  Qxc3+ {[%clk 0:02:35]} 10. Bd2 {[%clk 0:02:41]}  Qa3 {[%clk 0:02:36]} 11. Rxc5 {[%clk 0:02:39]}  O-O {[%clk 0:02:21]} 12. Qc1 {[%clk 0:02:28]}  Qxc1+ {[%clk 0:02:20]} 13. Rxc1 {[%clk 0:02:29]}  Nc6 {[%clk 0:02:17]} 14. d5 {[%clk 0:02:27]}  Nd4 {[%clk 0:02:16]} 15. Nxd4 {[%clk 0:02:27]}  Bxd4 {[%clk 0:02:17]} 16. Bc3 {[%clk 0:02:25]}  Bxc3+ {[%clk 0:02:08]} 17. Rxc3 {[%clk 0:02:26]}  Rd8 {[%clk 0:01:51]} 18. Bc4 {[%clk 0:02:20]}  Bd7 {[%clk 0:01:43]} 19. Ke2 {[%clk 0:02:17]}  Rac8 {[%clk 0:01:42]} 20. Rhc1 {[%clk 0:02:10]}  Rxc4 {[%clk 0:01:37]} 21. Rxc4 {[%clk 0:02:10]}  Bb5 {[%clk 0:01:38]} 22. Ke3 {[%clk 0:02:10]}  Bxc4 {[%clk 0:01:37]} 23. Rxc4 {[%clk 0:02:11]}  Rd7 {[%clk 0:01:37]} 24. a4 {[%clk 0:02:07]}  f5 {[%clk 0:01:27]} 1/2-1/2


[Site "https://www.chess.com"]

[Event "Titled Tuesday Blitz December 27 Early 2022"]
[White "Pinheiro, Iung Alicio de O."]
[Black "Sargissyan, Sargis"]
[WhiteFideId "2104350"]
[BlackFideId "13303210"]
[WhiteElo "2306"]
[BlackElo "2234"]
[Result "0-1"]
[Round "07"]
[TimeControl "180+2"]
[Date "2022.12.27"]
[WhiteClock "0:00:08"]
[BlackClock "0:00:06"]

1. d4 {[%clk 0:02:41]}  Nf6 {[%clk 0:02:59]} 2. c4 {[%clk 0:02:38]}  g6 {[%clk 0:02:58]} 3. Nc3 {[%clk 0:02:36]}  d5 {[%clk 0:02:59]} 4. Nf3 {[%clk 0:02:34]}  Bg7 {[%clk 0:02:58]} 5. cxd5 {[%clk 0:02:35]}  Nxd5 {[%clk 0:02:58]} 6. e4 {[%clk 0:02:35]}  Nxc3 {[%clk 0:02:59]} 7. bxc3 {[%clk 0:02:36]}  c5 {[%clk 0:02:59]} 8. h3 {[%clk 0:02:35]}  O-O {[%clk 0:02:57]} 9. Be2 {[%clk 0:02:33]}  cxd4 {[%clk 0:02:50]} 10. cxd4 {[%clk 0:02:32]}  Nc6 {[%clk 0:02:50]} 11. Be3 {[%clk 0:02:32]}  Qa5+ {[%clk 0:02:48]} 12. Bd2 {[%clk 0:02:31]}  Qa3 {[%clk 0:02:20]} 13. d5 {[%clk 0:02:29]}  Ne5 {[%clk 0:01:44]} 14. Nxe5 {[%clk 0:02:19]}  Bxe5 {[%clk 0:01:43]} 15. Rb1 {[%clk 0:02:00]}  Qxa2 {[%clk 0:01:30]} 16. O-O {[%clk 0:01:58]}  b6 {[%clk 0:01:31]} 17. Bb4 {[%clk 0:01:45]}  Bd6 {[%clk 0:00:59]} 18. Ra1 {[%clk 0:00:58]}  Qb2 {[%clk 0:00:58]} 19. Bxd6 {[%clk 0:00:56]}  exd6 {[%clk 0:00:58]} 20. Qd3 {[%clk 0:00:52]}  Bd7 {[%clk 0:00:53]} 21. Rfb1 {[%clk 0:00:46]}  Qe5 {[%clk 0:00:52]} 22. Ra6 {[%clk 0:00:41]}  f5 {[%clk 0:00:38]} 23. f3 {[%clk 0:00:28]}  fxe4 {[%clk 0:00:36]} 24. fxe4 {[%clk 0:00:29]}  Rfe8 {[%clk 0:00:18]} 25. Bf3 {[%clk 0:00:28]}  Rec8 {[%clk 0:00:15]} 26. Qa3 {[%clk 0:00:21]}  Rc2 {[%clk 0:00:13]} 27. Rxa7 {[%clk 0:00:17]}  Rd8 {[%clk 0:00:07]} 28. Qe3 {[%clk 0:00:12]}  Bxh3 {[%clk 0:00:07]} 29. Raa1 {[%clk 0:00:08]}  Qg3 {[%clk 0:00:06]} 0-1


[Site "https://www.chess.com"]

[Event "Titled Tuesday Blitz December 27 Early 2022"]
[White "Prudnykova, Olga"]
[Black "Kho, Darrell"]
[WhiteFideId "14121093"]
[BlackFideId "1019317"]
[WhiteElo "2268"]
[BlackElo "2075"]
[Result "1-0"]
[Round "07"]
[TimeControl "180+2"]
[Date "2022.12.27"]
[WhiteClock "0:02:35"]
[BlackClock "0:01:33"]

1. e4 {[%clk 0:03:00]}  g6 {[%clk 0:02:40]} 2. d4 {[%clk 0:03:00]}  Bg7 {[%clk 0:02:40]} 3. Nc3 {[%clk 0:02:59]}  d6 {[%clk 0:02:40]} 4. Be3 {[%clk 0:02:58]}  a6 {[%clk 0:02:40]} 5. h3 {[%clk 0:02:57]}  Nd7 {[%clk 0:02:37]} 6. g4 {[%clk 0:02:56]}  b5 {[%clk 0:02:33]} 7. a3 {[%clk 0:02:52]}  Bb7 {[%clk 0:02:34]} 8. Bg2 {[%clk 0:02:53]}  e6 {[%clk 0:02:33]} 9. Nge2 {[%clk 0:02:52]}  Ne7 {[%clk 0:02:33]} 10. Ng3 {[%clk 0:02:51]}  h6 {[%clk 0:02:29]} 11. Qd2 {[%clk 0:02:51]}  c5 {[%clk 0:02:24]} 12. Rd1 {[%clk 0:02:45]}  Qc7 {[%clk 0:02:09]} 13. O-O {[%clk 0:02:42]}  Kf8 {[%clk 0:01:58]} 14. f4 {[%clk 0:02:40]}  cxd4 {[%clk 0:01:55]} 15. Bxd4 {[%clk 0:02:40]}  Bxd4+ {[%clk 0:01:55]} 16. Qxd4 {[%clk 0:02:40]}  Qc5 {[%clk 0:01:51]} 17. Kh2 {[%clk 0:02:39]}  Qxd4 {[%clk 0:01:49]} 18. Rxd4 {[%clk 0:02:39]}  Kg7 {[%clk 0:01:35]} 19. Rxd6 {[%clk 0:02:36]}  Kh7 {[%clk 0:01:33]} 20. Rxd7 {[%clk 0:02:35]} 1-0


[Site "https://www.chess.com"]

[Event "Titled Tuesday Blitz December 27 Early 2022"]
[White "Samsonkin, Artiom"]
[Black "Makarian, Rudik"]
[WhiteFideId "13503111"]
[BlackFideId "44105681"]
[WhiteElo "2420"]
[BlackElo "2545"]
[Result "1-0"]
[Round "07"]
[TimeControl "180+2"]
[Date "2022.12.27"]
[WhiteClock "0:00:33"]
[BlackClock "0:00:07"]

1. e4 {[%clk 0:03:00]}  c5 {[%clk 0:02:57]} 2. Nf3 {[%clk 0:03:01]}  e6 {[%clk 0:02:54]} 3. Nc3 {[%clk 0:03:00]}  Nc6 {[%clk 0:02:53]} 4. Bb5 {[%clk 0:03:00]}  Nd4 {[%clk 0:02:49]} 5. Bc4 {[%clk 0:02:57]}  Nc6 {[%clk 0:02:31]} 6. O-O {[%clk 0:02:54]}  a6 {[%clk 0:02:31]} 7. d4 {[%clk 0:02:30]}  cxd4 {[%clk 0:02:30]} 8. Nxd4 {[%clk 0:02:30]}  Qc7 {[%clk 0:02:18]} 9. Nxc6 {[%clk 0:02:29]}  Qxc6 {[%clk 0:02:14]} 10. Qe2 {[%clk 0:02:25]}  Be7 {[%clk 0:02:08]} 11. e5 {[%clk 0:02:15]}  b5 {[%clk 0:02:02]} 12. Bd3 {[%clk 0:02:14]}  Bb7 {[%clk 0:02:03]} 13. Be4 {[%clk 0:02:13]}  Qc7 {[%clk 0:02:03]} 14. Bxb7 {[%clk 0:02:12]}  Qxb7 {[%clk 0:02:04]} 15. Qg4 {[%clk 0:01:59]}  g6 {[%clk 0:01:18]} 16. Ne4 {[%clk 0:01:54]}  h5 {[%clk 0:01:17]} 17. Qf3 {[%clk 0:01:51]}  Qc6 {[%clk 0:01:04]} 18. Rd1 {[%clk 0:01:26]}  Nh6 {[%clk 0:00:58]} 19. Nf6+ {[%clk 0:01:04]}  Bxf6 {[%clk 0:00:49]} 20. Qxf6 {[%clk 0:01:05]}  Ng8 {[%clk 0:00:26]} 21. Qxh8 {[%clk 0:01:02]}  O-O-O {[%clk 0:00:27]} 22. Qg7 {[%clk 0:01:01]}  Ne7 {[%clk 0:00:26]} 23. Bg5 {[%clk 0:00:57]}  Nf5 {[%clk 0:00:26]} 24. Qxf7 {[%clk 0:00:58]}  Rh8 {[%clk 0:00:24]} 25. Bf6 {[%clk 0:00:57]}  Rh6 {[%clk 0:00:11]} 26. Rd2 {[%clk 0:00:46]}  g5 {[%clk 0:00:09]} 27. Rad1 {[%clk 0:00:45]}  d5 {[%clk 0:00:07]} 28. exd6 {[%clk 0:00:43]}  Qd7 {[%clk 0:00:07]} 29. Qxd7+ {[%clk 0:00:33]}  Kxd7 {[%clk 0:00:08]} 30. Be5 {[%clk 0:00:34]}  Rh8 {[%clk 0:00:07]} 31. Bxh8 {[%clk 0:00:33]} 1-0


[Site "https://www.chess.com"]

[Event "Titled Tuesday Blitz December 27 Early 2022"]
[White "Sanchez, Robert"]
[Black "Wickramasinghe, Minethma Lasandi"]
[WhiteFideId "2034360"]
[BlackFideId "9966170"]
[WhiteElo "1966"]
[BlackElo "1483"]
[Result "1-0"]
[Round "07"]
[TimeControl "180+2"]
[Date "2022.12.27"]
[WhiteClock "0:00:57"]
[BlackClock "0:00:36"]

1. e4 {[%clk 0:03:00]}  c6 {[%clk 0:02:57]} 2. d4 {[%clk 0:02:59]}  d5 {[%clk 0:02:57]} 3. e5 {[%clk 0:02:59]}  Bf5 {[%clk 0:02:56]} 4. Nf3 {[%clk 0:02:59]}  e6 {[%clk 0:02:55]} 5. Be2 {[%clk 0:02:59]}  Nd7 {[%clk 0:02:54]} 6. O-O {[%clk 0:02:58]}  Ne7 {[%clk 0:02:53]} 7. c3 {[%clk 0:02:57]}  Nc8 {[%clk 0:02:52]} 8. Re1 {[%clk 0:02:57]}  Be7 {[%clk 0:02:50]} 9. Nbd2 {[%clk 0:02:58]}  c5 {[%clk 0:02:49]} 10. Nf1 {[%clk 0:02:58]}  O-O {[%clk 0:02:46]} 11. Ng3 {[%clk 0:02:57]}  Bg6 {[%clk 0:02:46]} 12. Be3 {[%clk 0:02:57]}  Ncb6 {[%clk 0:02:42]} 13. b3 {[%clk 0:02:49]}  cxd4 {[%clk 0:02:38]} 14. cxd4 {[%clk 0:02:49]}  Bb4 {[%clk 0:02:37]} 15. Bd2 {[%clk 0:02:46]}  Qe7 {[%clk 0:02:37]} 16. Bg5 {[%clk 0:02:30]}  f6 {[%clk 0:02:31]} 17. exf6 {[%clk 0:02:29]}  gxf6 {[%clk 0:02:30]} 18. Bd2 {[%clk 0:02:28]}  Rac8 {[%clk 0:02:25]} 19. Bxb4 {[%clk 0:02:24]}  Qxb4 {[%clk 0:02:22]} 20. Bd3 {[%clk 0:02:25]}  Rfe8 {[%clk 0:02:03]} 21. Bxg6 {[%clk 0:02:16]}  hxg6 {[%clk 0:02:02]} 22. Qd3 {[%clk 0:02:17]}  Kg7 {[%clk 0:01:47]} 23. Nh4 {[%clk 0:02:11]}  Nf8 {[%clk 0:01:46]} 24. Nf3 {[%clk 0:01:52]}  Rc3 {[%clk 0:01:36]} 25. Qe2 {[%clk 0:01:47]}  Rec8 {[%clk 0:01:31]} 26. h4 {[%clk 0:01:43]}  Rc2 {[%clk 0:01:26]} 27. Qd1 {[%clk 0:01:36]}  a5 {[%clk 0:01:23]} 28. h5 {[%clk 0:01:35]}  a4 {[%clk 0:01:23]} 29. hxg6 {[%clk 0:01:35]}  Kxg6 {[%clk 0:01:15]} 30. Nh4+ {[%clk 0:01:32]}  Kf7 {[%clk 0:01:13]} 31. Qh5+ {[%clk 0:01:29]}  Ke7 {[%clk 0:01:11]} 32. Nhf5+ {[%clk 0:01:17]}  Kd7 {[%clk 0:01:05]} 33. Qf7+ {[%clk 0:01:15]}  Kc6 {[%clk 0:01:06]} 34. Ne7+ {[%clk 0:01:12]}  Kb5 {[%clk 0:01:04]} 35. Nxc8 {[%clk 0:01:11]}  Rxc8 {[%clk 0:01:04]} 36. bxa4+ {[%clk 0:01:11]}  Kxa4 {[%clk 0:01:02]} 37. Qxb7 {[%clk 0:01:06]}  Qxd4 {[%clk 0:00:59]} 38. Rab1 {[%clk 0:01:02]}  Ra8 {[%clk 0:00:39]} 39. Rxb6 {[%clk 0:00:58]}  Qd2 {[%clk 0:00:36]} 40. Qxa8+ {[%clk 0:00:57]} 1-0


[Site "https://www.chess.com"]

[Event "Titled Tuesday Blitz December 27 Early 2022"]
[White "Serpi, Andrea"]
[Black "Hoffmann, Asa"]
[WhiteFideId "2847499"]
[BlackFideId "2001470"]
[WhiteElo "2191"]
[BlackElo "2185"]
[Result "1-0"]
[Round "07"]
[TimeControl "180+2"]
[Date "2022.12.27"]
[WhiteClock "0:00:14"]
[BlackClock "0:00:12"]

1. e4 {[%clk 0:03:00]}  d6 {[%clk 0:02:59]} 2. d4 {[%clk 0:03:00]}  Nf6 {[%clk 0:02:55]} 3. Nc3 {[%clk 0:03:00]}  c6 {[%clk 0:02:55]} 4. f4 {[%clk 0:03:00]}  Qa5 {[%clk 0:02:54]} 5. Bd3 {[%clk 0:02:59]}  e5 {[%clk 0:02:54]} 6. Nf3 {[%clk 0:03:00]}  exd4 {[%clk 0:02:53]} 7. Nxd4 {[%clk 0:02:59]}  Qb6 {[%clk 0:02:52]} 8. Be2 {[%clk 0:02:56]}  Be7 {[%clk 0:02:49]} 9. O-O {[%clk 0:02:55]}  O-O {[%clk 0:02:48]} 10. Kh1 {[%clk 0:02:55]}  Re8 {[%clk 0:02:42]} 11. e5 {[%clk 0:02:48]}  Nd5 {[%clk 0:02:39]} 12. Nxd5 {[%clk 0:02:45]}  cxd5 {[%clk 0:02:38]} 13. Bf3 {[%clk 0:02:40]}  dxe5 {[%clk 0:02:35]} 14. fxe5 {[%clk 0:02:39]}  Be6 {[%clk 0:02:32]} 15. Nxe6 {[%clk 0:02:37]}  fxe6 {[%clk 0:02:31]} 16. c3 {[%clk 0:02:35]}  Nd7 {[%clk 0:02:31]} 17. Qe2 {[%clk 0:02:33]}  Rf8 {[%clk 0:02:29]} 18. Be3 {[%clk 0:02:33]}  Bc5 {[%clk 0:02:29]} 19. Bg5 {[%clk 0:02:28]}  Rf5 {[%clk 0:02:24]} 20. Qd2 {[%clk 0:02:12]}  Nxe5 {[%clk 0:02:19]} 21. Bxd5 {[%clk 0:02:05]}  Raf8 {[%clk 0:01:53]} 22. Rxf5 {[%clk 0:01:57]}  Rxf5 {[%clk 0:01:53]} 23. Bb3 {[%clk 0:01:53]}  h6 {[%clk 0:01:44]} 24. Bh4 {[%clk 0:01:47]}  Be3 {[%clk 0:01:39]} 25. Qd8+ {[%clk 0:01:46]}  Qxd8 {[%clk 0:01:31]} 26. Bxd8 {[%clk 0:01:46]}  Kf7 {[%clk 0:01:29]} 27. Rd1 {[%clk 0:01:42]}  Rf2 {[%clk 0:01:25]} 28. h3 {[%clk 0:01:29]}  Rxb2 {[%clk 0:01:24]} 29. Re1 {[%clk 0:01:24]}  Bf4 {[%clk 0:01:23]} 30. Rf1 {[%clk 0:01:20]}  g5 {[%clk 0:01:20]} 31. g3 {[%clk 0:01:16]}  Ke8 {[%clk 0:01:19]} 32. gxf4 {[%clk 0:01:16]}  gxf4 {[%clk 0:01:18]} 33. Bf6 {[%clk 0:01:11]}  Nd3 {[%clk 0:01:16]} 34. Bh4 {[%clk 0:00:59]}  e5 {[%clk 0:01:09]} 35. Rd1 {[%clk 0:00:53]}  e4 {[%clk 0:01:07]} 36. Bd5 {[%clk 0:00:49]}  Re2 {[%clk 0:01:04]} 37. Bxe4 {[%clk 0:00:47]}  Rxe4 {[%clk 0:00:55]} 38. Rxd3 {[%clk 0:00:47]}  Ra4 {[%clk 0:00:55]} 39. Rd2 {[%clk 0:00:43]}  Ra3 {[%clk 0:00:51]} 40. Rc2 {[%clk 0:00:43]}  Kd7 {[%clk 0:00:51]} 41. Kg2 {[%clk 0:00:42]}  Kc6 {[%clk 0:00:51]} 42. Kf3 {[%clk 0:00:43]}  Ra4 {[%clk 0:00:51]} 43. Bf6 {[%clk 0:00:41]}  Kd5 {[%clk 0:00:50]} 44. Bd4 {[%clk 0:00:40]}  b5 {[%clk 0:00:48]} 45. Kxf4 {[%clk 0:00:38]}  b4 {[%clk 0:00:48]} 46. Ke3 {[%clk 0:00:37]}  a5 {[%clk 0:00:48]} 47. c4+ {[%clk 0:00:37]}  Kc6 {[%clk 0:00:47]} 48. Bb2 {[%clk 0:00:32]}  Kc5 {[%clk 0:00:38]} 49. Bc1 {[%clk 0:00:30]}  b3 {[%clk 0:00:32]} 50. axb3 {[%clk 0:00:30]}  Ra1 {[%clk 0:00:31]} 51. Kd3 {[%clk 0:00:28]}  a4 {[%clk 0:00:29]} 52. bxa4 {[%clk 0:00:25]}  Rxa4 {[%clk 0:00:28]} 53. Be3+ {[%clk 0:00:26]}  Kc6 {[%clk 0:00:28]} 54. c5 {[%clk 0:00:25]}  Rh4 {[%clk 0:00:27]} 55. Rh2 {[%clk 0:00:24]}  h5 {[%clk 0:00:26]} 56. Ke2 {[%clk 0:00:23]}  Ra4 {[%clk 0:00:24]} 57. Kf3 {[%clk 0:00:23]}  Kd5 {[%clk 0:00:24]} 58. Rg2 {[%clk 0:00:22]}  Rc4 {[%clk 0:00:23]} 59. Rg5+ {[%clk 0:00:21]}  Kc6 {[%clk 0:00:22]} 60. Rxh5 {[%clk 0:00:21]}  Kb5 {[%clk 0:00:22]} 61. Rg5 {[%clk 0:00:18]}  Kc6 {[%clk 0:00:20]} 62. Rg4 {[%clk 0:00:17]}  Rc2 {[%clk 0:00:19]} 63. h4 {[%clk 0:00:17]}  Rh2 {[%clk 0:00:19]} 64. Kg3 {[%clk 0:00:16]}  Rh1 {[%clk 0:00:18]} 65. Kg2 {[%clk 0:00:15]}  Re1 {[%clk 0:00:17]} 66. Bf2 {[%clk 0:00:15]}  Re5 {[%clk 0:00:16]} 67. Rg5 {[%clk 0:00:14]}  Re4 {[%clk 0:00:16]} 68. h5 {[%clk 0:00:13]}  Re6 {[%clk 0:00:14]} 69. Rg6 {[%clk 0:00:13]}  Rxg6+ {[%clk 0:00:12]} 70. hxg6 {[%clk 0:00:14]}  Kd5 {[%clk 0:00:12]} 71. g7 {[%clk 0:00:14]} 1-0


[Site "https://www.chess.com"]

[Event "Titled Tuesday Blitz December 27 Early 2022"]
[White "Shipov, Sergei"]
[Black "Mendez Fortes, Eduardo Jesus"]
[WhiteFideId "4113624"]
[BlackFideId "3502376"]
[WhiteElo "2541"]
[BlackElo "2250"]
[Result "1-0"]
[Round "07"]
[TimeControl "180+2"]
[Date "2022.12.27"]
[WhiteClock "0:00:46"]
[BlackClock "0:00:01"]

1. d4 {[%clk 0:02:59]}  Nf6 {[%clk 0:02:57]} 2. c4 {[%clk 0:02:59]}  e6 {[%clk 0:02:58]} 3. Nc3 {[%clk 0:02:58]}  Bb4 {[%clk 0:02:58]} 4. Qc2 {[%clk 0:02:59]}  O-O {[%clk 0:02:57]} 5. a3 {[%clk 0:02:59]}  Bxc3+ {[%clk 0:02:57]} 6. Qxc3 {[%clk 0:03:00]}  d6 {[%clk 0:02:57]} 7. f3 {[%clk 0:03:00]}  Nbd7 {[%clk 0:02:56]} 8. e4 {[%clk 0:02:59]}  c5 {[%clk 0:02:55]} 9. Ne2 {[%clk 0:02:59]}  b6 {[%clk 0:02:55]} 10. d5 {[%clk 0:02:57]}  e5 {[%clk 0:02:54]} 11. g4 {[%clk 0:02:56]}  a6 {[%clk 0:02:51]} 12. Ng3 {[%clk 0:02:55]}  Qc7 {[%clk 0:02:46]} 13. Rg1 {[%clk 0:02:52]}  Rb8 {[%clk 0:02:34]} 14. a4 {[%clk 0:02:52]}  b5 {[%clk 0:02:32]} 15. axb5 {[%clk 0:02:52]}  axb5 {[%clk 0:02:32]} 16. cxb5 {[%clk 0:02:52]}  Nb6 {[%clk 0:02:24]} 17. Bg5 {[%clk 0:02:51]}  Nfxd5 {[%clk 0:02:19]} 18. exd5 {[%clk 0:02:50]}  Nxd5 {[%clk 0:02:18]} 19. Qd2 {[%clk 0:02:50]}  Nb4 {[%clk 0:02:14]} 20. Ne4 {[%clk 0:02:31]}  f6 {[%clk 0:01:52]} 21. Be3 {[%clk 0:02:22]}  Rd8 {[%clk 0:01:50]} 22. Rd1 {[%clk 0:02:18]}  Be6 {[%clk 0:01:49]} 23. h4 {[%clk 0:01:57]}  Kh8 {[%clk 0:01:40]} 24. h5 {[%clk 0:01:56]}  Qe7 {[%clk 0:01:21]} 25. h6 {[%clk 0:01:52]}  g6 {[%clk 0:01:17]} 26. Kf2 {[%clk 0:01:47]}  Rbc8 {[%clk 0:01:16]} 27. Be2 {[%clk 0:01:32]}  Nd5 {[%clk 0:01:06]} 28. Rc1 {[%clk 0:01:25]}  Nb6 {[%clk 0:00:54]} 29. Rgd1 {[%clk 0:01:23]}  f5 {[%clk 0:00:46]} 30. Bg5 {[%clk 0:01:22]}  Qf8 {[%clk 0:00:37]} 31. Bxd8 {[%clk 0:01:17]}  Rxd8 {[%clk 0:00:36]} 32. Nxc5 {[%clk 0:01:16]}  Bg8 {[%clk 0:00:28]} 33. Nb7 {[%clk 0:01:16]}  Rd7 {[%clk 0:00:28]} 34. Nxd6 {[%clk 0:01:15]}  Nd5 {[%clk 0:00:19]} 35. Nc4 {[%clk 0:01:00]}  Qf6 {[%clk 0:00:16]} 36. g5 {[%clk 0:00:58]}  Qe6 {[%clk 0:00:13]} 37. b3 {[%clk 0:00:54]}  f4 {[%clk 0:00:12]} 38. Qb2 {[%clk 0:00:53]}  Re7 {[%clk 0:00:10]} 39. Nxe5 {[%clk 0:00:45]}  Qxe5 {[%clk 0:00:06]} 40. Qxe5+ {[%clk 0:00:45]}  Rxe5 {[%clk 0:00:06]} 41. Rc8 {[%clk 0:00:46]}  Rxg5 {[%clk 0:00:05]} 42. Bc4 {[%clk 0:00:46]}  Re5 {[%clk 0:00:02]} 43. Bxd5 {[%clk 0:00:45]}  Rxd5 {[%clk 0:00:02]} 44. Rxd5 {[%clk 0:00:45]}  g5 {[%clk 0:00:02]} 45. Rdd8 {[%clk 0:00:45]}  g4 {[%clk 0:00:01]} 46. Rxg8# {[%clk 0:00:46]} 1-0


[Site "https://www.chess.com"]